bitfinex-derivatives/quotes_BTCF0:USTF0_20250528
["timestamp","ask_amount","ask_price","bid_price","bid_amount"]
[1748401094535,2.15425176,108700.0,108690.0,0.23227794]
[1748401094938,2.19723485,108700.0,108690.0,0.23227794]
[1748401095136,2.15425176,108700.0,108690.0,0.23227794]
[1748401095737,2.19724822,108700.0,108690.0,0.23227794]
[1748401095943,2.19720822,108700.0,108690.0,0.23227799]
[1748401096144,2.19720822,108700.0,108690.0,0.21804121]
[1748401097036,2.15421176,108700.0,108690.0,0.18584121]
[1748401098643,2.15421176,108700.0,108690.0,0.18484121]
[1748401099241,1.9106243,108700.0,108690.0,0.18484121]
[1748401099540,2.15421176,108700.0,108690.0,0.18484121]
[1748401102135,2.15421176,108700.0,108690.0,0.00092001]
[1748401102837,2.15381176,108700.0,108690.0,0.18484151]
[1748401104837,2.15381176,108700.0,108690.0,0.00092001]
[1748401106140,2.27560549,108700.0,108690.0,0.00092001]
[1748401106340,2.27560549,108700.0,108690.0,0.00104001]
[1748401108447,2.33303358,108700.0,108690.0,0.02872157]
[1748401113151,2.21123985,108700.0,108690.0,0.02872157]
[1748401113653,2.33303358,108700.0,108690.0,0.02872157]
[1748401115341,2.33283358,108700.0,108690.0,0.02872157]
[1748401117056,1.96745239,108700.0,108690.0,0.02872157]
[1748401117257,2.33283358,108700.0,108690.0,0.02872157]
[1748401118258,2.21103985,108700.0,108690.0,0.02872157]
[1748401119050,2.33283358,108700.0,108690.0,0.02872157]
[1748401122176,2.21103985,108700.0,108690.0,0.02872157]
[1748401122676,2.33283358,108700.0,108690.0,0.02872157]
[1748401124177,2.21103985,108700.0,108690.0,0.02872157]
[1748401124778,2.33283358,108700.0,108690.0,0.02872157]
[1748401128162,2.21083985,108700.0,108690.0,0.02872157]
[1748401131686,2.21079985,108700.0,108690.0,0.02872157]
[1748401131882,2.2538721,108700.0,108690.0,0.02872157]
[1748401132082,2.21079985,108700.0,108690.0,0.02872157]
[1748401137383,2.21079985,108700.0,108690.0,0.02860157]
[1748401138273,2.33259358,108700.0,108690.0,0.02860157]
[1748401138588,2.33259358,108700.0,108690.0,0.04141939]
[1748401138778,2.41866368,108700.0,108690.0,0.04141939]
[1748401138968,2.36123559,108700.0,108690.0,0.01388749]
[1748401140084,2.36123559,108700.0,108690.0,0.00104001]
[1748401142277,0.1839214,108690.0,108680.0,0.02768156]
[1748401142481,1.36297093,108690.0,108680.0,0.02768156]
[1748401142987,1.6711772,108690.0,108680.0,0.02768156]
[1748401143176,1.6711772,108690.0,108680.0,0.06030156]
[1748401143990,1.62812203,108690.0,108680.0,0.06030156]
[1748401144184,1.67117989,108690.0,108680.0,0.06030156]
[1748401144483,1.68054959,108690.0,108680.0,0.06130156]
[1748401144686,1.55875586,108690.0,108680.0,0.06230156]
[1748401144985,1.68054959,108690.0,108680.0,0.06230156]
[1748401147189,1.62314269,108690.0,108680.0,0.06230156]
[1748401148293,1.58008483,108690.0,108680.0,0.06230156]
[1748401148491,1.62313477,108690.0,108680.0,0.06230156]
[1748401152790,1.62311641,108690.0,108680.0,0.06230156]
[1748401154295,1.50132268,108690.0,108680.0,0.06230156]
[1748401154496,1.62311641,108690.0,108680.0,0.06230156]
[1748401155700,1.19311641,108690.0,108680.0,0.06230156]
[1748401157385,1.37231704,108690.0,108680.0,0.02980156]
[1748401158298,1.32928546,108690.0,108680.0,0.02980156]
[1748401159301,1.45107919,108690.0,108680.0,0.02980156]
[1748401159495,0.1839383,108680.0,108670.0,0.03041956]
[1748401159699,1.14988618,108680.0,108670.0,0.10073255]
[1748401159894,1.46988618,108680.0,108670.0,0.10073255]
[1748401160099,1.46988618,108680.0,108670.0,0.10085255]
[1748401160292,1.89964618,108680.0,108670.0,0.10085255]
[1748401160694,1.89964618,108680.0,108670.0,0.10385255]
[1748401160894,1.89964618,108680.0,108670.0,0.10373255]
[1748401161090,1.89964618,108680.0,108670.0,0.10385255]
[1748401161392,1.87037101,108680.0,108670.0,0.10685255]
[1748401161592,1.91338843,108680.0,108670.0,0.10685255]
[1748401165901,1.91338384,108680.0,108670.0,0.10685255]
[1748401166098,1.91338384,108680.0,108670.0,0.03653956]
[1748401170298,1.91339671,108680.0,108670.0,0.03653956]
[1748401173106,0.1839552,108670.0,108660.0,0.10958224]
[1748401173311,1.08144893,108670.0,108660.0,0.10958224]
[1748401174004,0.1839722,108660.0,108650.0,0.44154624]
[1748401174210,1.14146593,108660.0,108650.0,0.78154624]
[1748401174396,0.76146593,108660.0,108650.0,0.78154624]
[1748401175104,1.09146593,108660.0,108650.0,0.78654624]
[1748401175406,1.09146593,108660.0,108650.0,0.79154624]
[1748401176199,1.09146593,108660.0,108650.0,0.79454624]
[1748401176806,1.09146593,108660.0,108650.0,0.74854954]
[1748401177615,1.09146593,108660.0,108650.0,0.69348744]
[1748401177914,1.09146593,108660.0,108650.0,0.68463027]
[1748401178104,1.09146593,108660.0,108650.0,0.67181166]
[1748401178300,1.09146593,108660.0,108650.0,0.68474473]
[1748401178500,1.09146593,108660.0,108650.0,0.68474485]
[1748401178717,1.09146593,108660.0,108650.0,0.67193166]
[1748401179212,1.09146593,108660.0,108650.0,0.60162944]
[1748401189519,1.09146593,108660.0,108650.0,0.70683582]
[1748401189715,1.09146593,108660.0,108650.0,0.78893422]
[1748401191417,0.73066593,108660.0,108650.0,0.78893422]
[1748401191617,1.09146593,108660.0,108650.0,0.44893422]
[1748401192126,1.09146593,108660.0,108650.0,0.39878994]
[1748401192420,1.09146593,108660.0,108650.0,0.44893386]
[1748401193024,1.09146593,108660.0,108650.0,0.45893386]
[1748401193923,1.09146593,108660.0,108650.0,0.39233386]
[1748401194427,1.09146593,108660.0,108650.0,0.25997154]
[1748401194721,1.09146593,108660.0,108650.0,0.26009154]
[1748401195109,1.09146593,108660.0,108650.0,0.33042602]
[1748401195313,1.09146593,108660.0,108650.0,0.31686511]
[1748401195613,1.09146593,108660.0,108650.0,0.27536392]
[1748401197425,1.09146593,108660.0,108650.0,0.30536392]
[1748401199330,0.73066593,108660.0,108650.0,0.30536392]
[1748401199622,1.45226593,108660.0,108650.0,0.30536392]
[1748401200823,1.3304722,108660.0,108650.0,0.30536392]
[1748401201024,1.45226593,108660.0,108650.0,0.26536392]
[1748401201413,1.45226593,108660.0,108650.0,0.19502944]
[1748401201614,1.45226593,108660.0,108650.0,0.21502944]
[1748401202533,1.57405966,108660.0,108650.0,0.01104034]
[1748401202746,2.00309966,108660.0,108650.0,0.01104034]
[1748401202924,2.00309966,108660.0,108650.0,0.05243627]
[1748401203117,2.00309966,108660.0,108650.0,0.08023371]
[1748401203314,2.1035725,108660.0,108650.0,0.08011371]
[1748401203519,2.1035725,108660.0,108650.0,0.03871778]
[1748401204620,2.0461656,108660.0,108650.0,0.03371778]
[1748401205337,2.04615067,108660.0,108650.0,0.02871778]
[1748401205524,2.10355757,108660.0,108650.0,0.02871778]
[1748401205732,2.04615067,108660.0,108650.0,0.02871778]
[1748401205939,1.80256321,108660.0,108650.0,0.02871778]
[1748401206224,2.04615067,108660.0,108650.0,0.02871778]
[1748401208832,2.1679444,108660.0,108650.0,0.02859778]
[1748401209137,2.10355757,108660.0,108650.0,0.01384251]
[1748401209331,1.85997011,108660.0,108650.0,0.01372417]
[1748401209530,2.10355757,108660.0,108650.0,0.01373606]
[1748401210126,2.10355757,108660.0,108650.0,0.01385975]
[1748401210329,2.10455757,108660.0,108650.0,0.01385975]
[1748401210731,2.10455757,108660.0,108650.0,0.00104034]
[1748401211932,2.10655757,108660.0,108650.0,0.00104034]
[1748401213333,2.10652633,108660.0,108650.0,0.00104034]
[1748401214930,2.04911943,108660.0,108650.0,0.00104034]
[1748401215129,2.05011943,108660.0,108650.0,0.00104034]
[1748401215634,1.62107943,108660.0,108650.0,0.00104034]
[1748401215826,2.04999943,108660.0,108650.0,0.00104034]
[1748401216442,2.17179316,108660.0,108650.0,0.00104034]
[1748401216742,1.19351977,108660.0,108650.0,0.30682277]
[1748401217037,1.12526553,108660.0,108650.0,0.61001614]
[1748401217335,1.17726553,108660.0,108650.0,0.64211614]
[1748401218723,1.17426553,108660.0,108650.0,0.64211614]
[1748401219234,1.12426553,108660.0,108650.0,0.64211614]
[1748401219435,1.12226553,108660.0,108650.0,0.64211614]
[1748401219636,1.12326553,108660.0,108650.0,0.64211614]
[1748401219941,1.16326553,108660.0,108650.0,0.64211614]
[1748401220539,0.1839886,108650.0,108640.0,0.04329469]
[1748401220741,1.06998233,108650.0,108640.0,0.00184086]
[1748401220947,1.60094233,108650.0,108640.0,0.00184086]
[1748401221646,1.64397272,108650.0,108640.0,0.00196086]
[1748401221827,1.64397272,108650.0,108640.0,0.00296086]
[1748401222635,1.64397272,108650.0,108640.0,0.00196086]
[1748401222939,1.64497272,108650.0,108640.0,0.00196086]
[1748401223132,1.64497272,108650.0,108640.0,0.00296086]
[1748401223640,1.64597272,108650.0,108640.0,0.00196086]
[1748401224043,1.64617977,108650.0,108640.0,0.00196086]
[1748401225344,1.64617977,108650.0,108640.0,0.00184086]
[1748401225747,1.64617977,108650.0,108640.0,0.00196086]
[1748401225953,1.64618286,108650.0,108640.0,0.00196086]
[1748401227367,1.76818364,108650.0,108640.0,0.00184086]
[1748401227559,1.70358976,108650.0,108640.0,0.00184086]
[1748401227850,1.66055628,108650.0,108640.0,0.00196086]
[1748401229450,1.74662638,108650.0,108640.0,0.00196086]
[1748401230548,1.74662638,108650.0,108640.0,0.00220258]
[1748401235847,1.6246256,108650.0,108640.0,0.00220258]
[1748401236047,1.74662638,108650.0,108640.0,0.00220258]
[1748401237049,1.6246256,108650.0,108640.0,0.00220258]
[1748401237342,1.74662638,108650.0,108640.0,0.00220258]
[1748401238050,1.31774638,108650.0,108640.0,0.00220258]
[1748401238244,1.66087628,108650.0,108640.0,0.00220258]
[1748401238444,1.74694638,108650.0,108640.0,0.00220258]
[1748401238643,1.66087628,108650.0,108640.0,0.00220258]
[1748401240245,1.74694638,108650.0,108640.0,0.00220258]
[1748401240649,1.66087628,108650.0,108640.0,0.00220258]
[1748401243249,1.66039628,108650.0,108640.0,0.00220258]
[1748401243441,1.66039628,108650.0,108640.0,0.00208258]
[1748401243647,1.66039628,108650.0,108640.0,0.00220258]
[1748401244050,1.782416,108650.0,108640.0,0.00220258]
[1748401246648,1.251616,108650.0,108640.0,0.00220258]
[1748401246859,1.0075955,108650.0,108640.0,0.00220258]
[1748401247065,1.66040575,108650.0,108640.0,0.00220258]
[1748401247748,1.782416,108650.0,108640.0,0.00220258]
[1748401248546,1.8684861,108650.0,108640.0,0.00220258]
[1748401249250,2.2292861,108650.0,108640.0,0.00220258]
[1748401249641,2.1718792,108650.0,108640.0,0.00220258]
[1748401254256,1.9278587,108650.0,108640.0,0.00220258]
[1748401254454,2.1718792,108650.0,108640.0,0.00220258]
[1748401256758,2.0858091,108650.0,108640.0,0.00220258]
[1748401256962,2.17207885,108650.0,108640.0,0.00220258]
[1748401257158,2.0858091,108650.0,108640.0,0.00220258]
[1748401257463,2.20043604,108650.0,108640.0,0.07244368]
[1748401258257,0.1840225,108630.0,108620.0,0.22216091]
[1748401258450,0.76071232,108630.0,108620.0,0.22179027]
[1748401258652,1.21531232,108630.0,108620.0,0.22179027]
[1748401259874,1.13430326,108630.0,108620.0,0.35580052]
[1748401260055,1.13530326,108630.0,108620.0,0.23779027]
[1748401260261,1.17530326,108630.0,108620.0,0.23779027]
[1748401260670,1.05329301,108630.0,108620.0,0.23779027]
[1748401260968,1.17530326,108630.0,108620.0,0.23779027]
[1748401261550,1.17530326,108630.0,108620.0,0.24169027]
[1748401262857,1.20550326,108630.0,108620.0,0.24169027]
[1748401263054,1.21481715,108630.0,108620.0,0.24169027]
[1748401263249,1.17481715,108630.0,108620.0,0.24169027]
[1748401263450,1.54481715,108630.0,108620.0,0.24169027]
[1748401263863,1.50168792,108630.0,108620.0,0.24169027]
[1748401264053,1.54481695,108630.0,108620.0,0.24169027]
[1748401264767,1.1028067,108630.0,108620.0,0.24169027]
[1748401265063,1.22481695,108630.0,108620.0,0.24169027]
[1748401265653,1.51481695,108630.0,108620.0,0.05765227]
[1748401265865,1.51481695,108630.0,108620.0,0.24169167]
[1748401266064,1.3928067,108630.0,108620.0,0.24169167]
[1748401266367,1.51481695,108630.0,108620.0,0.24169167]
[1748401268968,1.51481695,108630.0,108620.0,0.23779167]
[1748401271560,1.51481695,108630.0,108620.0,0.23579167]
[1748401271766,1.50550306,108630.0,108620.0,0.23679167]
[1748401272158,1.50550306,108630.0,108620.0,0.23579167]
[1748401272358,1.50550306,108630.0,108620.0,0.23479167]
[1748401272669,1.20550306,108630.0,108620.0,0.23479167]
[1748401273062,1.20550306,108630.0,108620.0,0.23179167]
[1748401273370,1.04349281,108630.0,108620.0,0.23379167]
[1748401273569,1.21550306,108630.0,108620.0,0.23379167]
[1748401274270,1.52550306,108630.0,108620.0,0.01385227]
[1748401274472,1.70503103,108630.0,108620.0,0.01282611]
[1748401274671,1.74817859,108630.0,108620.0,0.01298405]
[1748401274855,1.69066087,108630.0,108620.0,0.01310405]
[1748401275461,1.69066087,108630.0,108620.0,0.01309187]
[1748401275662,1.69066087,108630.0,108620.0,0.01321187]
[1748401276167,1.69066087,108630.0,108620.0,0.01319266]
[1748401276363,1.69066087,108630.0,108620.0,0.01322508]
[1748401276667,1.69066087,108630.0,108620.0,0.00012007]
[1748401277170,1.69066087,108630.0,108620.0,0.01321544]
[1748401277767,1.74805624,108630.0,108620.0,0.01321544]
[1748401277978,2.15684599,108630.0,108620.0,0.01318532]
[1748401278171,2.15684599,108630.0,108620.0,0.19714346]
[1748401278469,2.1136127,108630.0,108620.0,0.01304936]
[1748401278859,2.1136127,108630.0,108620.0,0.00012007]
[1748401279058,1.5828127,108630.0,108620.0,0.00012007]
[1748401279263,2.1136527,108630.0,108620.0,0.18415957]
[1748401279473,2.11365018,108630.0,108620.0,0.18415957]
[1748401279965,2.11365018,108630.0,108620.0,0.18415917]
[1748401279966,1.46079993,108630.0,108620.0,0.18415917]
[1748401280158,2.11366315,108630.0,108620.0,0.00012007]
[1748401280363,1.58282315,108630.0,108620.0,0.29415917]
[1748401280560,2.05626778,108630.0,108620.0,0.29415917]
[1748401280962,1.62734623,108630.0,108620.0,0.29415917]
[1748401285263,1.52542623,108630.0,108620.0,0.29415917]
[1748401288369,1.52542623,108630.0,108620.0,0.32181593]
[1748401288689,1.19340301,108630.0,108620.0,0.32181593]
[1748401288971,1.31542623,108630.0,108620.0,0.32181593]
[1748401289171,1.272387,108630.0,108620.0,0.32181593]
[1748401290562,1.272387,108630.0,108620.0,0.32481593]
[1748401290767,1.272387,108630.0,108620.0,0.35571593]
[1748401291973,1.122387,108630.0,108620.0,0.62571593]
[1748401292293,0.09474128,108630.0,108620.0,1.24102239]
[1748401292473,0.27876378,108630.0,108620.0,1.29998449]
[1748401292874,0.63956378,108630.0,108620.0,0.91608449]
[1748401293176,0.63956378,108630.0,108620.0,0.42011917]
[1748401293487,0.761587,108630.0,108620.0,0.29415917]
[1748401293867,0.761587,108630.0,108620.0,0.29403917]
[1748401294072,0.761587,108630.0,108620.0,0.29415917]
[1748401296179,1.121587,108630.0,108620.0,0.22561921]
[1748401297783,1.550427,108630.0,108620.0,0.22561921]
[1748401297978,1.550427,108630.0,108620.0,0.2532572]
[1748401299279,1.550427,108630.0,108620.0,0.2531372]
[1748401299684,1.550427,108630.0,108620.0,0.2532572]
[1748401300187,1.260427,108630.0,108620.0,0.2532572]
[1748401301380,1.261427,108630.0,108620.0,0.2532572]
[1748401301588,1.262427,108630.0,108620.0,0.25325713]
[1748401303471,0.901627,108630.0,108620.0,0.25325713]
[1748401303677,1.623227,108630.0,108620.0,0.25325713]
[1748401308195,1.903227,108630.0,108620.0,0.06921803]
[1748401308390,1.903227,108630.0,108620.0,0.25325753]
[1748401309084,1.903227,108630.0,108620.0,0.06921803]
[1748401309484,1.903227,108630.0,108620.0,0.25325753]
[1748401310190,1.903227,108630.0,108620.0,0.06921803]
[1748401310391,1.903227,108630.0,108620.0,0.25325753]
[1748401310995,1.67525022,108630.0,108620.0,0.06921803]
[1748401311299,2.1356834,108630.0,108620.0,0.00012]
[1748401311494,0.1840395,108620.0,108610.0,0.07186008]
[1748401311794,0.7398795,108620.0,108610.0,0.07186008]
[1748401311993,1.26531117,108620.0,108610.0,0.03052004]
[1748401313282,1.27890198,108620.0,108610.0,0.03152004]
[1748401313484,1.27990198,108620.0,108610.0,0.03152004]
[1748401314397,1.28090198,108620.0,108610.0,0.03040004]
[1748401314591,1.28090198,108620.0,108610.0,0.03052004]
[1748401315187,1.28190198,108620.0,108610.0,0.00288205]
[1748401319399,1.28185437,108620.0,108610.0,0.00288205]
[1748401320595,1.15983115,108620.0,108610.0,0.00288205]
[1748401320896,1.28185437,108620.0,108610.0,0.00288205]
[1748401322292,1.23886417,108620.0,108610.0,0.00288205]
[1748401322487,1.28185437,108620.0,108610.0,0.00288205]
[1748401323511,1.23886417,108620.0,108610.0,0.00288205]
[1748401323703,1.28185168,108620.0,108610.0,0.00288205]
[1748401324605,1.71094232,108620.0,108610.0,0.00288205]
[1748401326291,2.07174232,108620.0,108610.0,0.00288205]
[1748401327807,2.07176551,108620.0,108610.0,0.00288205]
[1748401329000,1.54120551,108620.0,108610.0,0.00288205]
[1748401329204,2.07172551,108620.0,108610.0,0.00288205]
[1748401330007,1.66330385,108620.0,108610.0,0.00288205]
[1748401330210,2.19382385,108620.0,108610.0,0.00288205]
[1748401332201,2.19383039,108620.0,108610.0,0.00288205]
[1748401333712,2.07176961,108620.0,108610.0,0.00288205]
[1748401333916,2.19383039,108620.0,108610.0,0.00288205]
[1748401335422,2.19475039,108620.0,108610.0,0.00288205]
[1748401335729,2.19567039,108620.0,108610.0,0.00288205]
[1748401336029,1.52282883,108620.0,108610.0,0.00288205]
[1748401336222,2.19563039,108620.0,108610.0,0.00288205]
[1748401336421,2.19565232,108620.0,108610.0,0.00288205]
[1748401338217,2.25304769,108620.0,108610.0,0.03052004]
[1748401338833,2.25304769,108620.0,108610.0,0.00288205]
[1748401339220,2.25304769,108620.0,108610.0,0.03052004]
[1748401339626,2.25306648,108620.0,108610.0,0.03052004]
[1748401340728,2.25308512,108620.0,108610.0,0.03052004]
[1748401344333,2.21000852,108620.0,108610.0,0.03052004]
[1748401344530,2.25309666,108620.0,108610.0,0.03052004]
[1748401344724,2.25309666,108620.0,108610.0,0.03040004]
[1748401345125,2.21000852,108620.0,108610.0,0.03040004]
[1748401348439,1.48840852,108620.0,108610.0,0.03040004]
[1748401348640,2.21100852,108620.0,108610.0,0.03040004]
[1748401352247,1.96688696,108620.0,108610.0,0.03040004]
[1748401352446,2.21100852,108620.0,108610.0,0.03040004]
[1748401354949,2.3330693,108620.0,108610.0,0.03040004]
[1748401355147,2.21100852,108620.0,108610.0,0.03040004]
[1748401355950,2.21080852,108620.0,108610.0,0.03040004]
[1748401360255,2.29708511,108620.0,108610.0,0.03040004]
[1748401360448,2.21080852,108620.0,108610.0,0.03040004]
[1748401361639,1.68052852,108620.0,108610.0,0.03040004]
[1748401361846,2.21072852,108620.0,108610.0,0.03040004]
[1748401370172,0.1840565,108610.0,108600.0,0.16916261]
[1748401370363,1.0722957,108610.0,108600.0,0.18206935]
[1748401370552,1.13011627,108610.0,108600.0,0.18206935]
[1748401370749,1.66023627,108610.0,108600.0,0.18206935]
[1748401371162,1.66023616,108610.0,108600.0,0.18206935]
[1748401371364,1.66023616,108610.0,108600.0,0.18200231]
[1748401371864,1.66023616,108610.0,108600.0,0.18200089]
[1748401372061,1.23183616,108610.0,108600.0,0.32461425]
[1748401372557,1.17438623,108610.0,108600.0,0.35323601]
[1748401372763,1.17538623,108610.0,108600.0,0.35323601]
[1748401373160,0.86366623,108610.0,108600.0,0.2940734]
[1748401373361,0.86366623,108610.0,108600.0,0.37043344]
[1748401374468,0.86466623,108610.0,108600.0,0.37043344]
[1748401375180,0.74260545,108610.0,108600.0,0.49249422]
[1748401375375,0.03237064,108610.0,108600.0,1.080531]
[1748401375565,0.00237064,108610.0,108600.0,1.34413306]
[1748401376276,0.00237064,108610.0,108600.0,1.70493306]
[1748401376457,0.00137064,108610.0,108600.0,1.70493306]
[1748401376666,0.00137064,108610.0,108600.0,1.70593306]
[1748401376873,0.00137064,108610.0,108600.0,1.70032221]
[1748401377076,0.00234881,108620.0,108610.0,0.42817806]
[1748401377276,0.00234881,108620.0,108610.0,1.78810353]
[1748401377570,0.00234881,108620.0,108610.0,2.00811075]
[1748401378976,0.03364881,108620.0,108610.0,2.01011075]
[1748401379275,0.03464881,108620.0,108610.0,2.01311075]
[1748401379973,0.03464881,108620.0,108610.0,2.01304935]
[1748401380766,0.03464881,108620.0,108610.0,1.95770388]
[1748401381866,0.03464881,108620.0,108610.0,2.01304935]
[1748401383273,0.03464881,108620.0,108610.0,2.06234093]
[1748401383477,0.03464881,108620.0,108610.0,2.01753144]
[1748401384991,0.21868841,108620.0,108610.0,2.01741144]
[1748401385384,0.24988841,108620.0,108610.0,0.85637206]
[1748401385602,0.40388779,108620.0,108610.0,1.18802197]
[1748401385778,0.40388779,108620.0,108610.0,0.7044765]
[1748401385779,0.28188841,108620.0,108610.0,0.7044765]
[1748401385972,0.28188841,108620.0,108610.0,1.1327965]
[1748401386673,0.28188841,108620.0,108610.0,1.17417606]
[1748401386873,0.28188841,108620.0,108610.0,1.1327965]
[1748401387268,0.28188841,108620.0,108610.0,1.17417464]
[1748401387575,0.28188841,108620.0,108610.0,1.1327965]
[1748401388383,0.28188841,108620.0,108610.0,1.17417267]
[1748401389581,0.28188841,108620.0,108610.0,1.1327965]
[1748401389781,0.28188841,108620.0,108610.0,1.1297965]
[1748401390078,0.28188841,108620.0,108610.0,1.0990965]
[1748401390887,0.28188841,108620.0,108610.0,1.0988965]
[1748401392781,0.28188841,108620.0,108610.0,0.5691765]
[1748401392975,0.28188841,108620.0,108610.0,1.0988565]
[1748401394183,0.28188841,108620.0,108610.0,1.15420197]
[1748401394588,0.28188841,108620.0,108610.0,0.97014547]
[1748401394783,0.28188841,108620.0,108610.0,1.15420197]
[1748401395285,0.28188841,108620.0,108610.0,1.15720197]
[1748401395491,0.28188841,108620.0,108610.0,1.1347565]
[1748401395676,0.28188841,108620.0,108610.0,1.19010197]
[1748401395880,0.28188841,108620.0,108610.0,1.15420197]
[1748401396079,0.28188841,108620.0,108610.0,1.27620135]
[1748401396374,0.28188841,108620.0,108610.0,1.15420197]
[1748401396882,0.28188841,108620.0,108610.0,1.15416197]
[1748401400583,0.28188841,108620.0,108610.0,1.27616135]
[1748401400788,0.28188841,108620.0,108610.0,1.15716197]
[1748401400984,0.28188841,108620.0,108610.0,1.22381588]
[1748401401385,0.28188841,108620.0,108610.0,1.27916135]
[1748401401584,0.28188841,108620.0,108610.0,1.30946135]
[1748401401979,0.28188841,108620.0,108610.0,1.30948368]
[1748401402885,0.28188841,108620.0,108610.0,1.27618368]
[1748401403594,0.40391012,108620.0,108610.0,1.27618368]
[1748401404384,0.28188841,108620.0,108610.0,1.27618368]
[1748401404580,0.28188841,108620.0,108610.0,1.63698368]
[1748401404776,0.28188841,108620.0,108610.0,1.64146577]
[1748401405384,0.28188841,108620.0,108610.0,1.5861203]
[1748401405585,0.28188841,108620.0,108610.0,1.5891203]
[1748401405784,0.28188841,108620.0,108610.0,1.28368528]
[1748401405988,0.28188841,108620.0,108610.0,1.27920363]
[1748401406385,0.28188841,108620.0,108610.0,1.22383865]
[1748401406899,0.28188841,108620.0,108610.0,1.22083865]
[1748401407087,0.28188841,108620.0,108610.0,1.61773865]
[1748401408389,0.09784881,108620.0,108610.0,1.61773865]
[1748401408589,0.09784881,108620.0,108610.0,1.62163865]
[1748401408778,0.09784881,108620.0,108610.0,1.71370665]
[1748401411210,0.03464881,108620.0,108610.0,1.79662712]
[1748401411878,0.03464881,108620.0,108610.0,1.79662598]
[1748401412196,0.0601,108630.0,108620.0,0.1840395]
[1748401412197,0.03,108630.0,108620.0,0.1840395]
[1748401412408,0.0326,108640.0,108630.0,0.1840226]
[1748401412580,0.06262936,108640.0,108630.0,1.97150792]
[1748401412789,0.06262936,108640.0,108630.0,1.88941414]
[1748401412996,0.0304,108640.0,108630.0,1.9814654]
[1748401413195,0.0304,108640.0,108630.0,2.07527318]
[1748401413393,0.00013817,108650.0,108640.0,0.1840056]
[1748401413585,0.21452687,108650.0,108640.0,1.17050848]
[1748401414083,0.21452687,108650.0,108640.0,2.65635251]
[1748401414482,0.21452687,108650.0,108640.0,1.17049664]
[1748401414690,0.21552687,108650.0,108640.0,1.15635251]
[1748401414993,0.21552687,108650.0,108640.0,1.17497132]
[1748401415489,0.24802687,108650.0,108640.0,1.17497132]
[1748401415693,0.28122687,108650.0,108640.0,1.17497132]
[1748401415993,0.18122687,108650.0,108640.0,1.17048923]
[1748401416192,0.2759729,108660.0,108650.0,0.1839887]
[1748401416393,0.2759729,108660.0,108650.0,1.11597713]
[1748401416700,0.2759729,108660.0,108650.0,1.11634777]
[1748401416888,0.2759729,108660.0,108650.0,1.11633752]
[1748401417577,0.2779729,108660.0,108650.0,1.11633752]
[1748401417778,0.2789729,108660.0,108650.0,1.11633752]
[1748401418697,0.2789729,108660.0,108650.0,0.99431537]
[1748401418906,0.2789729,108660.0,108650.0,1.11633752]
[1748401419195,0.2789729,108660.0,108650.0,1.16431537]
[1748401419388,0.3730729,108660.0,108650.0,1.16431537]
[1748401420198,0.3730729,108660.0,108650.0,1.1501889]
[1748401420377,0.3730729,108660.0,108650.0,0.7223089]
[1748401420608,0.49509505,108660.0,108650.0,1.16422604]
[1748401420989,0.49509505,108660.0,108650.0,1.16422558]
[1748401421694,0.3730729,108660.0,108650.0,1.16422558]
[1748401421897,0.3730729,108660.0,108650.0,1.1168089]
[1748401422105,0.3730729,108660.0,108650.0,1.13092513]
[1748401422794,0.3730729,108660.0,108650.0,1.13092488]
[1748401422995,0.3730729,108660.0,108650.0,1.1168089]
[1748401424991,0.3730729,108660.0,108650.0,1.13092478]
[1748401425494,0.3730729,108660.0,108650.0,1.1168089]
[1748401426295,0.3730729,108660.0,108650.0,1.13092478]
[1748401426496,0.3730729,108660.0,108650.0,1.1168089]
[1748401427298,0.3730729,108660.0,108650.0,1.13092439]
[1748401427898,0.3730729,108660.0,108650.0,1.1168089]
[1748401429590,0.3730729,108660.0,108650.0,1.13092377]
[1748401429789,0.3730729,108660.0,108650.0,1.1168089]
[1748401430295,0.3730729,108660.0,108650.0,1.13092378]
[1748401430491,0.0971,108660.0,108650.0,1.25294593]
[1748401430707,0.2810718,108660.0,108650.0,1.64554593]
[1748401430894,0.2810718,108660.0,108650.0,1.67644593]
[1748401431087,0.0971,108660.0,108650.0,1.67644593]
[1748401431294,0.0347,108660.0,108650.0,1.63499424]
[1748401431604,0.0347,108660.0,108650.0,1.92738807]
[1748401431605,0.003,108660.0,108650.0,1.92738807]
[1748401431803,0.002,108660.0,108650.0,1.84550464]
[1748401432305,0.001,108660.0,108650.0,1.7982679]
[1748401432496,0.001,108660.0,108650.0,1.72903023]
[1748401432698,0.27937419,108670.0,108660.0,0.1839717]
[1748401432903,0.27937419,108670.0,108660.0,1.13469382]
[1748401433301,0.27937419,108670.0,108660.0,1.13506446]
[1748401433806,0.27937419,108670.0,108660.0,1.66406123]
[1748401433992,0.27937419,108670.0,108660.0,1.7054313]
[1748401434193,0.27937419,108670.0,108660.0,1.70543147]
[1748401434403,0.00341929,108670.0,108660.0,1.92147762]
[1748401434592,0.00341929,108670.0,108660.0,1.80811592]
[1748401434810,0.00341929,108670.0,108660.0,2.00880862]
[1748401434999,0.00341929,108670.0,108660.0,1.83400199]
[1748401435398,0.00341929,108670.0,108660.0,2.07804629]
[1748401435796,0.00341929,108670.0,108660.0,2.09414413]
[1748401436212,0.00341929,108670.0,108660.0,2.09413644]
[1748401436402,0.00341929,108670.0,108660.0,2.09413805]
[1748401436598,0.00341929,108670.0,108660.0,3.59513805]
[1748401437610,0.00341929,108670.0,108660.0,3.50155699]
[1748401438308,0.00341929,108670.0,108660.0,3.84826523]
[1748401438609,0.00341929,108670.0,108660.0,3.86223719]
[1748401438818,0.03661929,108670.0,108660.0,3.86223719]
[1748401439004,0.03661929,108670.0,108660.0,3.86221468]
[1748401439909,0.03661929,108670.0,108660.0,3.86221169]
[1748401440431,0.03661929,108670.0,108660.0,3.29302874]
[1748401440709,0.03661929,108670.0,108660.0,3.72610057]
[1748401440900,0.03661929,108670.0,108660.0,3.74019419]
[1748401441096,0.03661929,108670.0,108660.0,3.82193584]
[1748401441510,0.03661929,108670.0,108660.0,3.64817019]
[1748401442016,0.03661929,108670.0,108660.0,3.64817451]
[1748401442218,0.03661929,108670.0,108660.0,3.72992479]
[1748401442400,0.03661929,108670.0,108660.0,3.7299289]
[1748401442800,0.03661929,108670.0,108660.0,3.85195097]
[1748401443810,0.03661929,108670.0,108660.0,3.72992882]
[1748401444004,0.03661929,108670.0,108660.0,3.71582685]
[1748401444205,0.03661929,108670.0,108660.0,3.72992923]
[1748401444508,0.03661929,108670.0,108660.0,3.72992921]
[1748401445211,0.03661929,108670.0,108660.0,3.85195136]
[1748401445402,0.03661929,108670.0,108660.0,3.8519546]
[1748401445605,0.03661929,108670.0,108660.0,3.77057494]
[1748401446011,0.00341929,108670.0,108660.0,3.77057485]
[1748401447105,0.03651929,108670.0,108660.0,3.77057485]
[1748401447305,0.03651929,108670.0,108660.0,3.77058971]
[1748401447613,0.06941929,108670.0,108660.0,3.86417077]
[1748401447808,0.06941929,108670.0,108660.0,3.85006528]
[1748401448003,0.06941929,108670.0,108660.0,3.86417859]
[1748401449617,0.06941929,108670.0,108660.0,3.86419165]
[1748401449910,0.06941929,108670.0,108660.0,3.74188832]